[Event "Titled Tuesday Blitz August 16 Early 2022"]
[White "Mitrabha, Guha"]
[Black "Nakamura, Hikaru"]
[WhiteFideId "5057000"]
[BlackFideId "2016192"]
[WhiteElo "2499"]
[BlackElo "2850"]
[Result "0-1"]
[Round "03"]
[TimeControl "180+1"]
[Date "2022.08.16"]
[WhiteClock "0:00:08"]
[BlackClock "0:00:09"]

1. d4 {[%clk 0:03:00]}  g6 {[%clk 0:02:58]} 2. Nf3 {[%clk 0:03:00]}  f5 {[%clk 0:02:57]} 3. Nc3 {[%clk 0:02:55]}  Nf6 {[%clk 0:02:56]} 4. Bg5 {[%clk 0:02:56]}  Bg7 {[%clk 0:02:56]} 5. Bxf6 {[%clk 0:02:55]}  exf6 {[%clk 0:02:57]} 6. g3 {[%clk 0:02:54]}  d5 {[%clk 0:02:57]} 7. Bg2 {[%clk 0:02:54]}  c6 {[%clk 0:02:57]} 8. O-O {[%clk 0:02:55]}  O-O {[%clk 0:02:57]} 9. e3 {[%clk 0:02:55]}  Nd7 {[%clk 0:02:57]} 10. Ne2 {[%clk 0:02:56]}  Nb6 {[%clk 0:02:52]} 11. b3 {[%clk 0:02:52]}  Be6 {[%clk 0:02:52]} 12. Nd2 {[%clk 0:02:52]}  a5 {[%clk 0:02:49]} 13. Rc1 {[%clk 0:02:51]}  a4 {[%clk 0:02:49]} 14. c4 {[%clk 0:02:51]}  axb3 {[%clk 0:02:49]} 15. axb3 {[%clk 0:02:52]}  Bf7 {[%clk 0:02:49]} 16. Qc2 {[%clk 0:02:50]}  Re8 {[%clk 0:02:44]} 17. Ra1 {[%clk 0:02:49]}  Bf8 {[%clk 0:02:36]} 18. Nf4 {[%clk 0:02:42]}  Qd7 {[%clk 0:02:04]} 19. Nd3 {[%clk 0:02:29]}  Reb8 {[%clk 0:02:00]} 20. c5 {[%clk 0:01:54]}  Nc8 {[%clk 0:02:00]} 21. b4 {[%clk 0:01:55]}  Na7 {[%clk 0:01:59]} 22. Nb1 {[%clk 0:01:51]}  Nb5 {[%clk 0:01:55]} 23. Nc3 {[%clk 0:01:51]}  Nc7 {[%clk 0:01:51]} 24. Na4 {[%clk 0:01:49]}  Qe8 {[%clk 0:01:48]} 25. Nb6 {[%clk 0:01:47]}  Rxa1 {[%clk 0:01:48]} 26. Rxa1 {[%clk 0:01:48]}  g5 {[%clk 0:01:49]} 27. Qd2 {[%clk 0:01:25]}  h5 {[%clk 0:01:47]} 28. Bf1 {[%clk 0:01:17]}  Bh6 {[%clk 0:01:45]} 29. f4 {[%clk 0:01:13]}  h4 {[%clk 0:01:43]} 30. Kf2 {[%clk 0:01:13]}  Qe7 {[%clk 0:01:41]} 31. Bh3 {[%clk 0:01:13]}  Bg6 {[%clk 0:01:38]} 32. Bg2 {[%clk 0:01:06]}  Re8 {[%clk 0:01:38]} 33. Bf3 {[%clk 0:01:05]}  Kg7 {[%clk 0:01:33]} 34. Bg2 {[%clk 0:01:04]}  Rh8 {[%clk 0:01:33]} 35. Na4 {[%clk 0:01:01]}  Bh5 {[%clk 0:01:21]} 36. Nc3 {[%clk 0:00:59]}  Re8 {[%clk 0:01:21]} 37. Ra7 {[%clk 0:00:57]}  Rb8 {[%clk 0:00:59]} 38. b5 {[%clk 0:00:57]}  Be8 {[%clk 0:00:56]} 39. Nb4 {[%clk 0:00:55]}  Qd8 {[%clk 0:00:49]} 40. Qa2 {[%clk 0:00:47]}  Kg6 {[%clk 0:00:44]} 41. Qa5 {[%clk 0:00:46]}  Ne6 {[%clk 0:00:41]} 42. Qxd8 {[%clk 0:00:41]}  Nxd8 {[%clk 0:00:42]} 43. Bf3 {[%clk 0:00:39]}  Bf8 {[%clk 0:00:42]} 44. Bd1 {[%clk 0:00:30]}  Ne6 {[%clk 0:00:39]} 45. Ba4 {[%clk 0:00:27]}  Nxc5 {[%clk 0:00:39]} 46. bxc6 {[%clk 0:00:16]}  Nxa4 {[%clk 0:00:21]} 47. Rxb7 {[%clk 0:00:16]}  Ra8 {[%clk 0:00:20]} 48. Ncxd5 {[%clk 0:00:16]}  Bxb4 {[%clk 0:00:17]} 49. Nxb4 {[%clk 0:00:14]}  Nc3 {[%clk 0:00:18]} 50. c7 {[%clk 0:00:15]}  Rc8 {[%clk 0:00:15]} 51. d5 {[%clk 0:00:14]}  Kf7 {[%clk 0:00:14]} 52. d6 {[%clk 0:00:09]}  Ne4+ {[%clk 0:00:14]} 53. Ke2 {[%clk 0:00:09]}  Nxd6 {[%clk 0:00:15]} 54. Ra7 {[%clk 0:00:10]}  Nb5 {[%clk 0:00:14]} 55. Rb7 {[%clk 0:00:09]}  Rxc7 {[%clk 0:00:13]} 56. Rb6 {[%clk 0:00:10]}  Nc3+ {[%clk 0:00:13]} 57. Kd3 {[%clk 0:00:10]}  Bb5+ {[%clk 0:00:11]} 58. Kd2 {[%clk 0:00:09]}  Ne4+ {[%clk 0:00:11]} 59. Kd1 {[%clk 0:00:10]}  Ba4+ {[%clk 0:00:09]} 60. Ke2 {[%clk 0:00:10]}  Rd7 {[%clk 0:00:10]} 61. Kf3 {[%clk 0:00:08]}  g4+ {[%clk 0:00:08]} 62. Ke2 {[%clk 0:00:07]}  Nc3+ {[%clk 0:00:08]} 63. Kf2 {[%clk 0:00:07]}  Rd2+ {[%clk 0:00:08]} 64. Ke1 {[%clk 0:00:07]}  Rd1+ {[%clk 0:00:06]} 65. Kf2 {[%clk 0:00:07]}  Ne4+ {[%clk 0:00:07]} 66. Ke2 {[%clk 0:00:08]}  Rd2+ {[%clk 0:00:08]} 67. Kf1 {[%clk 0:00:08]}  Rxh2 {[%clk 0:00:09]} 68. gxh4 {[%clk 0:00:08]}  g3 {[%clk 0:00:09]} 0-1


[Site "https://www.chess.com"]

[Event "Titled Tuesday Blitz August 16 Early 2022"]
[White "Navalgund, Niranjan"]
[Black "Krsnik Cohar, Ivan Vihor"]
[WhiteFideId "5030854"]
[BlackFideId "14520044"]
[WhiteElo "2294"]
[BlackElo "2414"]
[Result "0-1"]
[Round "03"]
[TimeControl "180+2"]
[Date "2022.08.18"]
[WhiteClock "0:00:00"]
[BlackClock "0:00:00"]

1. e4 {[%clk 0:00:00]}  c5 {[%clk 0:00:00]} 2. d4 {[%clk 0:00:00]}  cxd4 {[%clk 0:00:00]} 3. c3 {[%clk 0:00:00]}  g6 {[%clk 0:00:00]} 4. h3 {[%clk 0:00:00]}  Bg7 {[%clk 0:00:00]} 5. Nf3 {[%clk 0:00:00]}  d5 {[%clk 0:00:00]} 6. exd5 {[%clk 0:00:00]}  Qxd5 {[%clk 0:00:00]} 7. cxd4 {[%clk 0:00:00]}  Nf6 {[%clk 0:00:00]} 8. Nc3 {[%clk 0:00:00]}  Qa5 {[%clk 0:00:00]} 9. Bb5+ {[%clk 0:00:00]}  Nbd7 {[%clk 0:00:00]} 10. O-O {[%clk 0:00:00]}  O-O {[%clk 0:00:00]} 11. Re1 {[%clk 0:00:00]}  e6 {[%clk 0:00:00]} 12. Bf4 {[%clk 0:00:00]}  a6 {[%clk 0:00:00]} 13. Bc4 {[%clk 0:00:00]}  b5 {[%clk 0:00:00]} 14. Bb3 {[%clk 0:00:00]}  Bb7 {[%clk 0:00:00]} 15. Bd6 {[%clk 0:00:00]}  Rfd8 {[%clk 0:00:00]} 16. Ng5 {[%clk 0:00:00]}  Nf8 {[%clk 0:00:00]} 17. Be7 {[%clk 0:00:00]}  Re8 {[%clk 0:00:00]} 18. Bc5 {[%clk 0:00:00]}  h6 {[%clk 0:00:00]} 19. Nge4 {[%clk 0:00:00]}  Nxe4 {[%clk 0:00:00]} 20. Nxe4 {[%clk 0:00:00]}  Red8 {[%clk 0:00:00]} 21. Qf3 {[%clk 0:00:00]}  Qc7 {[%clk 0:00:00]} 22. Nf6+ {[%clk 0:00:00]}  Kh8 {[%clk 0:00:00]} 23. Qe3 {[%clk 0:00:00]}  Bxf6 {[%clk 0:00:00]} 24. Qxh6+ {[%clk 0:00:00]}  Kg8 {[%clk 0:00:00]} 25. Re3 {[%clk 0:00:00]}  Bg7 {[%clk 0:00:00]} 26. Qg5 {[%clk 0:00:00]}  Qc6 {[%clk 0:00:00]} 27. Be7 {[%clk 0:00:00]}  Bh6 {[%clk 0:00:00]} 28. Qg3 {[%clk 0:00:00]}  Bxe3 {[%clk 0:00:00]} 29. Bxd8 {[%clk 0:00:00]}  Bxf2+ {[%clk 0:00:00]} 30. Qxf2 {[%clk 0:00:00]}  Rxd8 {[%clk 0:00:00]} 31. Rf1 {[%clk 0:00:00]}  Rd7 {[%clk 0:00:00]} 32. d5 {[%clk 0:00:00]}  exd5 {[%clk 0:00:00]} 33. Qd4 {[%clk 0:00:00]}  Ne6 {[%clk 0:00:00]} 34. Qf6 {[%clk 0:00:00]}  Nc5 {[%clk 0:00:00]} 35. Qd4 {[%clk 0:00:00]}  Nxb3 {[%clk 0:00:00]} 36. axb3 {[%clk 0:00:00]}  Rc7 {[%clk 0:00:00]} 37. Kh2 {[%clk 0:00:00]}  Qd6+ {[%clk 0:00:00]} 38. Kh1 {[%clk 0:00:00]}  Qc5 {[%clk 0:00:00]} 39. Qf6 {[%clk 0:00:00]}  d4 {[%clk 0:00:00]} 40. Rf4 {[%clk 0:00:00]}  Qe7 {[%clk 0:00:00]} 41. Qxd4 {[%clk 0:00:00]}  Rd7 {[%clk 0:00:00]} 42. Qf2 {[%clk 0:00:00]}  Qd6 {[%clk 0:00:00]} 43. Qh4 {[%clk 0:00:00]}  Qe6 {[%clk 0:00:00]} 44. Kh2 {[%clk 0:00:00]}  Kg7 {[%clk 0:00:00]} 45. Qg3 {[%clk 0:00:00]}  Qe7 {[%clk 0:00:00]} 46. h4 {[%clk 0:00:00]}  Rd5 {[%clk 0:00:00]} 47. Qc3+ {[%clk 0:00:00]}  Qe5 {[%clk 0:00:00]} 48. Qg3 {[%clk 0:00:00]}  Qe6 {[%clk 0:00:00]} 49. Qd3 {[%clk 0:00:00]}  Rxd3 {[%clk 0:00:00]} 0-1


[Site "https://www.chess.com"]

[Event "Titled Tuesday Blitz August 16 Early 2022"]
[White "Nugumanov, Bakhtiyar"]
[Black "Ohanyan, Emin"]
[WhiteFideId "13701797"]
[BlackFideId "13312022"]
[WhiteElo "2287"]
[BlackElo "1927"]
[Result "1-0"]
[Round "03"]
[TimeControl "180+2"]
[Date "2022.08.18"]
[WhiteClock "0:00:00"]
[BlackClock "0:00:00"]

1. Nf3 {[%clk 0:00:00]}  d5 {[%clk 0:00:00]} 2. g3 {[%clk 0:00:00]}  g6 {[%clk 0:00:00]} 3. Bg2 {[%clk 0:00:00]}  Bg7 {[%clk 0:00:00]} 4. d4 {[%clk 0:00:00]}  Nf6 {[%clk 0:00:00]} 5. O-O {[%clk 0:00:00]}  O-O {[%clk 0:00:00]} 6. c4 {[%clk 0:00:00]}  c6 {[%clk 0:00:00]} 7. Qb3 {[%clk 0:00:00]}  b5 {[%clk 0:00:00]} 8. cxb5 {[%clk 0:00:00]}  cxb5 {[%clk 0:00:00]} 9. Nc3 {[%clk 0:00:00]}  a6 {[%clk 0:00:00]} 10. Ne5 {[%clk 0:00:00]}  Bb7 {[%clk 0:00:00]} 11. a4 {[%clk 0:00:00]}  Nbd7 {[%clk 0:00:00]} 12. axb5 {[%clk 0:00:00]}  Nxe5 {[%clk 0:00:00]} 13. dxe5 {[%clk 0:00:00]}  Ne4 {[%clk 0:00:00]} 14. bxa6 {[%clk 0:00:00]}  Bxa6 {[%clk 0:00:00]} 15. Nxd5 {[%clk 0:00:00]}  Nc5 {[%clk 0:00:00]} 16. Qe3 {[%clk 0:00:00]}  Ne6 {[%clk 0:00:00]} 17. Nb4 {[%clk 0:00:00]}  Bb7 {[%clk 0:00:00]} 18. Rxa8 {[%clk 0:00:00]}  Qxa8 {[%clk 0:00:00]} 19. Bxb7 {[%clk 0:00:00]}  Qxb7 {[%clk 0:00:00]} 20. Bd2 {[%clk 0:00:00]}  Qb5 {[%clk 0:00:00]} 21. Bc3 {[%clk 0:00:00]}  h5 {[%clk 0:00:00]} 22. h4 {[%clk 0:00:00]}  Qc4 {[%clk 0:00:00]} 23. Rd1 {[%clk 0:00:00]}  Rb8 {[%clk 0:00:00]} 24. Nd5 {[%clk 0:00:00]}  Rb7 {[%clk 0:00:00]} 25. Qf3 {[%clk 0:00:00]}  Ra7 {[%clk 0:00:00]} 26. Kg2 {[%clk 0:00:00]}  Qb3 {[%clk 0:00:00]} 27. Rd3 {[%clk 0:00:00]}  Qb8 {[%clk 0:00:00]} 28. Nb4 {[%clk 0:00:00]}  Qc8 {[%clk 0:00:00]} 29. Nc6 {[%clk 0:00:00]}  Rc7 {[%clk 0:00:00]} 30. Nb4 {[%clk 0:00:00]}  Kh8 {[%clk 0:00:00]} 31. Nd5 {[%clk 0:00:00]}  Rc4 {[%clk 0:00:00]} 32. Rd2 {[%clk 0:00:00]}  Qe8 {[%clk 0:00:00]} 33. Ne3 {[%clk 0:00:00]}  Rc8 {[%clk 0:00:00]} 34. Qd5 {[%clk 0:00:00]}  Kg8 {[%clk 0:00:00]} 35. Nc4 {[%clk 0:00:00]}  Rd8 {[%clk 0:00:00]} 36. Qf3 {[%clk 0:00:00]}  Rb8 {[%clk 0:00:00]} 37. Ne3 {[%clk 0:00:00]}  Bh6 {[%clk 0:00:00]} 38. Nd5 {[%clk 0:00:00]}  Bxd2 {[%clk 0:00:00]} 39. Bxd2 {[%clk 0:00:00]}  Rd8 {[%clk 0:00:00]} 40. e4 {[%clk 0:00:00]}  Qd7 {[%clk 0:00:00]} 41. Bc3 {[%clk 0:00:00]}  Nc7 {[%clk 0:00:00]} 42. Nf4 {[%clk 0:00:00]}  Qg4 {[%clk 0:00:00]} 43. Qe3 {[%clk 0:00:00]}  Ne6 {[%clk 0:00:00]} 44. Nd5 {[%clk 0:00:00]}  Ng7 {[%clk 0:00:00]} 45. Nxe7+ {[%clk 0:00:00]}  Kh7 {[%clk 0:00:00]} 46. Nd5 {[%clk 0:00:00]}  Ne8 {[%clk 0:00:00]} 47. Qa7 {[%clk 0:00:00]}  Rd7 {[%clk 0:00:00]} 48. Qe3 {[%clk 0:00:00]}  Rd8 {[%clk 0:00:00]} 49. Bd4 {[%clk 0:00:00]}  Qc8 {[%clk 0:00:00]} 50. Bc3 {[%clk 0:00:00]}  Qc4 {[%clk 0:00:00]} 51. Qf3 {[%clk 0:00:00]}  Kg8 {[%clk 0:00:00]} 52. e6 {[%clk 0:00:00]}  f5 {[%clk 0:00:00]} 53. Ne7+ {[%clk 0:00:00]}  Kh7 {[%clk 0:00:00]} 54. exf5 {[%clk 0:00:00]}  Kh6 {[%clk 0:00:00]} 55. Qe3+ {[%clk 0:00:00]}  Kh7 {[%clk 0:00:00]} 56. fxg6# {[%clk 0:00:00]} 1-0


[Site "https://www.chess.com"]

[Event "Titled Tuesday Blitz August 16 Early 2022"]
[White "Olivares Olivares, Claudio"]
[Black "Petrova, Irina"]
[WhiteFideId "3400786"]
[BlackFideId "14124122"]
[WhiteElo "2249"]
[BlackElo "2021"]
[Result "0-1"]
[Round "03"]
[TimeControl "180+2"]
[Date "2022.08.18"]
[WhiteClock "0:00:00"]
[BlackClock "0:00:00"]

1. e4 {[%clk 0:00:00]}  d6 {[%clk 0:00:00]} 2. d4 {[%clk 0:00:00]}  Nf6 {[%clk 0:00:00]} 3. Nc3 {[%clk 0:00:00]}  e5 {[%clk 0:00:00]} 4. dxe5 {[%clk 0:00:00]}  dxe5 {[%clk 0:00:00]} 5. Qxd8+ {[%clk 0:00:00]}  Kxd8 {[%clk 0:00:00]} 6. Bc4 {[%clk 0:00:00]}  Ke8 {[%clk 0:00:00]} 7. f3 {[%clk 0:00:00]}  a6 {[%clk 0:00:00]} 8. Be3 {[%clk 0:00:00]}  b5 {[%clk 0:00:00]} 9. Bb3 {[%clk 0:00:00]}  Nbd7 {[%clk 0:00:00]} 10. a4 {[%clk 0:00:00]}  Rb8 {[%clk 0:00:00]} 11. axb5 {[%clk 0:00:00]}  axb5 {[%clk 0:00:00]} 12. Ra7 {[%clk 0:00:00]}  Bd6 {[%clk 0:00:00]} 13. Nge2 {[%clk 0:00:00]}  b4 {[%clk 0:00:00]} 14. Na4 {[%clk 0:00:00]}  Ke7 {[%clk 0:00:00]} 15. h4 {[%clk 0:00:00]}  Bb7 {[%clk 0:00:00]} 16. g4 {[%clk 0:00:00]}  h6 {[%clk 0:00:00]} 17. Ng3 {[%clk 0:00:00]}  g6 {[%clk 0:00:00]} 18. Kf2 {[%clk 0:00:00]}  Bc6 {[%clk 0:00:00]} 19. g5 {[%clk 0:00:00]}  hxg5 {[%clk 0:00:00]} 20. hxg5 {[%clk 0:00:00]}  Nh5 {[%clk 0:00:00]} 21. Nxh5 {[%clk 0:00:00]}  Rxh5 {[%clk 0:00:00]} 22. Rxh5 {[%clk 0:00:00]}  gxh5 {[%clk 0:00:00]} 23. Kg3 {[%clk 0:00:00]}  Rh8 {[%clk 0:00:00]} 24. Kh4 {[%clk 0:00:00]}  Bb5 {[%clk 0:00:00]} 25. Nb6 {[%clk 0:00:00]}  cxb6 {[%clk 0:00:00]} 26. Bxb6 {[%clk 0:00:00]}  Bc6 {[%clk 0:00:00]} 27. c4 {[%clk 0:00:00]}  bxc3 {[%clk 0:00:00]} 28. bxc3 {[%clk 0:00:00]}  Ra8 {[%clk 0:00:00]} 29. Kxh5 {[%clk 0:00:00]}  Rxa7 {[%clk 0:00:00]} 30. Bxa7 {[%clk 0:00:00]}  Bc5 {[%clk 0:00:00]} 31. Bxc5+ {[%clk 0:00:00]}  Nxc5 {[%clk 0:00:00]} 32. Bc4 {[%clk 0:00:00]}  Ba4 {[%clk 0:00:00]} 33. Kh4 {[%clk 0:00:00]}  Bd1 {[%clk 0:00:00]} 34. Kg3 {[%clk 0:00:00]}  Bc2 {[%clk 0:00:00]} 35. Bd5 {[%clk 0:00:00]}  Bb3 {[%clk 0:00:00]} 36. Bc6 {[%clk 0:00:00]}  Bc4 {[%clk 0:00:00]} 37. f4 {[%clk 0:00:00]}  exf4+ {[%clk 0:00:00]} 38. Kxf4 {[%clk 0:00:00]}  Ne6+ {[%clk 0:00:00]} 39. Kf5 {[%clk 0:00:00]}  Bf1 {[%clk 0:00:00]} 40. Bd5 {[%clk 0:00:00]}  Bh3+ {[%clk 0:00:00]} 41. Ke5 {[%clk 0:00:00]}  Nxg5 {[%clk 0:00:00]} 42. c4 {[%clk 0:00:00]}  Nf3+ {[%clk 0:00:00]} 43. Kf4 {[%clk 0:00:00]}  Nd2 {[%clk 0:00:00]} 44. c5 {[%clk 0:00:00]}  Bc8 {[%clk 0:00:00]} 45. Ke5 {[%clk 0:00:00]}  f6+ {[%clk 0:00:00]} 46. Kd4 {[%clk 0:00:00]}  Nf3+ {[%clk 0:00:00]} 47. Kc4 {[%clk 0:00:00]}  Ne5+ {[%clk 0:00:00]} 48. Kb5 {[%clk 0:00:00]}  Kd8 {[%clk 0:00:00]} 49. Kb6 {[%clk 0:00:00]}  Bg4 {[%clk 0:00:00]} 50. Kb7 {[%clk 0:00:00]}  Bc8+ {[%clk 0:00:00]} 51. Kb8 {[%clk 0:00:00]}  Nd7+ {[%clk 0:00:00]} 52. Ka7 {[%clk 0:00:00]}  Nxc5 {[%clk 0:00:00]} 53. Kb6 {[%clk 0:00:00]}  Nd7+ {[%clk 0:00:00]} 54. Kb5 {[%clk 0:00:00]}  Ke7 {[%clk 0:00:00]} 55. Kc4 {[%clk 0:00:00]}  Kd6 {[%clk 0:00:00]} 56. Kd4 {[%clk 0:00:00]}  Ne5 {[%clk 0:00:00]} 57. Ba8 {[%clk 0:00:00]}  Bd7 {[%clk 0:00:00]} 58. Bd5 {[%clk 0:00:00]}  Bc6 {[%clk 0:00:00]} 59. Bb3 {[%clk 0:00:00]}  Nd7 {[%clk 0:00:00]} 60. Bc2 {[%clk 0:00:00]}  Nf8 {[%clk 0:00:00]} 61. Bd3 {[%clk 0:00:00]}  Ne6+ {[%clk 0:00:00]} 62. Ke3 {[%clk 0:00:00]}  Ke5 {[%clk 0:00:00]} 63. Bc2 {[%clk 0:00:00]}  Nc5 {[%clk 0:00:00]} 64. Bb1 {[%clk 0:00:00]}  Bxe4 {[%clk 0:00:00]} 0-1


[Site "https://www.chess.com"]

[Event "Titled Tuesday Blitz August 16 Early 2022"]
[White "Oparin, Grigoriy"]
[Black "Koridze, Lile"]
[WhiteFideId "24125890"]
[BlackFideId "13612514"]
[WhiteElo "2639"]
[BlackElo "2050"]
[Result "1-0"]
[Round "03"]
[TimeControl "180+1"]
[Date "2022.08.16"]
[WhiteClock "0:00:04"]
[BlackClock "0:00:06"]

1. e4 {[%clk 0:03:00]}  c5 {[%clk 0:02:59]} 2. Nf3 {[%clk 0:03:01]}  d6 {[%clk 0:03:00]} 3. d4 {[%clk 0:03:01]}  cxd4 {[%clk 0:03:00]} 4. Nxd4 {[%clk 0:03:02]}  Nf6 {[%clk 0:03:00]} 5. Nc3 {[%clk 0:03:03]}  Nc6 {[%clk 0:03:01]} 6. Bg5 {[%clk 0:03:02]}  e6 {[%clk 0:03:01]} 7. Qd2 {[%clk 0:03:02]}  a6 {[%clk 0:03:02]} 8. Nxc6 {[%clk 0:03:02]}  bxc6 {[%clk 0:03:02]} 9. O-O-O {[%clk 0:03:02]}  h6 {[%clk 0:02:51]} 10. Bf4 {[%clk 0:02:59]}  d5 {[%clk 0:02:48]} 11. Qe3 {[%clk 0:02:51]}  Be7 {[%clk 0:02:43]} 12. f3 {[%clk 0:02:46]}  O-O {[%clk 0:02:40]} 13. g4 {[%clk 0:02:46]}  c5 {[%clk 0:02:27]} 14. Bc4 {[%clk 0:01:42]}  d4 {[%clk 0:02:17]} 15. Qe2 {[%clk 0:01:42]}  Qa5 {[%clk 0:02:12]} 16. Nb1 {[%clk 0:01:42]}  Bd7 {[%clk 0:02:05]} 17. g5 {[%clk 0:01:35]}  hxg5 {[%clk 0:02:05]} 18. Bxg5 {[%clk 0:01:35]}  Bb5 {[%clk 0:02:05]} 19. Rhg1 {[%clk 0:01:32]}  Rfb8 {[%clk 0:01:58]} 20. Bd2 {[%clk 0:00:47]}  Qb6 {[%clk 0:01:21]} 21. b3 {[%clk 0:00:44]}  a5 {[%clk 0:01:19]} 22. Bxb5 {[%clk 0:00:38]}  Qxb5 {[%clk 0:01:18]} 23. Qxb5 {[%clk 0:00:39]}  Rxb5 {[%clk 0:01:19]} 24. a4 {[%clk 0:00:39]}  Rb7 {[%clk 0:01:18]} 25. Na3 {[%clk 0:00:40]}  Nd7 {[%clk 0:01:14]} 26. Nc4 {[%clk 0:00:40]}  Bd8 {[%clk 0:01:14]} 27. Rg2 {[%clk 0:00:32]}  Nb8 {[%clk 0:01:10]} 28. Rdg1 {[%clk 0:00:32]}  f6 {[%clk 0:01:09]} 29. Bh6 {[%clk 0:00:29]}  Raa7 {[%clk 0:01:09]} 30. Nd6 {[%clk 0:00:23]}  Rd7 {[%clk 0:01:07]} 31. Ne8 {[%clk 0:00:20]}  g5 {[%clk 0:00:59]} 32. h4 {[%clk 0:00:21]}  Kf7 {[%clk 0:00:57]} 33. hxg5 {[%clk 0:00:12]}  fxg5 {[%clk 0:00:39]} 34. Ng7 {[%clk 0:00:08]}  Bf6 {[%clk 0:00:30]} 35. Nh5 {[%clk 0:00:08]}  Be5 {[%clk 0:00:29]} 36. Bxg5 {[%clk 0:00:08]}  d3 {[%clk 0:00:28]} 37. Bd2 {[%clk 0:00:07]}  Bd4 {[%clk 0:00:17]} 38. Rh1 {[%clk 0:00:07]}  Nc6 {[%clk 0:00:17]} 39. Nf4 {[%clk 0:00:06]}  Ke7 {[%clk 0:00:12]} 40. Rh7+ {[%clk 0:00:06]}  Kd6 {[%clk 0:00:12]} 41. Rxd7+ {[%clk 0:00:05]}  Rxd7 {[%clk 0:00:13]} 42. Nxd3 {[%clk 0:00:06]}  Rh7 {[%clk 0:00:13]} 43. c3 {[%clk 0:00:06]}  Rh1+ {[%clk 0:00:12]} 44. Kc2 {[%clk 0:00:06]}  Bf6 {[%clk 0:00:12]} 45. Bf4+ {[%clk 0:00:05]}  e5 {[%clk 0:00:12]} 46. Bd2 {[%clk 0:00:04]}  Rf1 {[%clk 0:00:12]} 47. Rf2 {[%clk 0:00:04]}  Rh1 {[%clk 0:00:12]} 48. Nb2 {[%clk 0:00:04]}  Bh4 {[%clk 0:00:11]} 49. Nc4+ {[%clk 0:00:05]}  Ke6 {[%clk 0:00:11]} 50. Rg2 {[%clk 0:00:05]}  Rf1 {[%clk 0:00:10]} 51. Rg6+ {[%clk 0:00:06]}  Kd7 {[%clk 0:00:08]} 52. Rh6 {[%clk 0:00:06]}  Bg3 {[%clk 0:00:08]} 53. Rg6 {[%clk 0:00:05]}  Rxf3 {[%clk 0:00:07]} 54. Be3 {[%clk 0:00:05]}  Bf2 {[%clk 0:00:06]} 55. Rxc6 {[%clk 0:00:04]}  Bxe3 {[%clk 0:00:06]} 56. Nxe5+ {[%clk 0:00:04]} 1-0


[Site "https://www.chess.com"]

[Event "Titled Tuesday Blitz August 16 Early 2022"]
[White "Papayan, Oleg"]
[Black "Blanco Ronquillo, Humberto L."]
[WhiteFideId "4193911"]
[BlackFideId "3504239"]
[WhiteElo "2038"]
[BlackElo "2425"]
[Result "0-1"]
[Round "03"]
[TimeControl "180+2"]
[Date "2022.08.18"]
[WhiteClock "0:00:00"]
[BlackClock "0:00:00"]

1. e4 {[%clk 0:00:00]}  c5 {[%clk 0:00:00]} 2. Nf3 {[%clk 0:00:00]}  Nc6 {[%clk 0:00:00]} 3. Bb5 {[%clk 0:00:00]}  Nf6 {[%clk 0:00:00]} 4. Nc3 {[%clk 0:00:00]}  e5 {[%clk 0:00:00]} 5. Bxc6 {[%clk 0:00:00]}  dxc6 {[%clk 0:00:00]} 6. h3 {[%clk 0:00:00]}  Bd6 {[%clk 0:00:00]} 7. d3 {[%clk 0:00:00]}  Nd7 {[%clk 0:00:00]} 8. Be3 {[%clk 0:00:00]}  Nf8 {[%clk 0:00:00]} 9. Ne2 {[%clk 0:00:00]}  Ne6 {[%clk 0:00:00]} 10. c3 {[%clk 0:00:00]}  O-O {[%clk 0:00:00]} 11. Qd2 {[%clk 0:00:00]}  b6 {[%clk 0:00:00]} 12. O-O-O {[%clk 0:00:00]}  Ba6 {[%clk 0:00:00]} 13. Kb1 {[%clk 0:00:00]}  Qe7 {[%clk 0:00:00]} 14. Ng3 {[%clk 0:00:00]}  g6 {[%clk 0:00:00]} 15. h4 {[%clk 0:00:00]}  Rad8 {[%clk 0:00:00]} 16. h5 {[%clk 0:00:00]}  Nf4 {[%clk 0:00:00]} 17. Bxf4 {[%clk 0:00:00]}  exf4 {[%clk 0:00:00]} 18. Ne2 {[%clk 0:00:00]}  Bc7 {[%clk 0:00:00]} 19. Qc2 {[%clk 0:00:00]}  Rfe8 {[%clk 0:00:00]} 20. hxg6 {[%clk 0:00:00]}  hxg6 {[%clk 0:00:00]} 21. c4 {[%clk 0:00:00]}  Qf6 {[%clk 0:00:00]} 22. Qc3 {[%clk 0:00:00]}  Qxc3 {[%clk 0:00:00]} 23. Nxc3 {[%clk 0:00:00]}  Kg7 {[%clk 0:00:00]} 24. b3 {[%clk 0:00:00]}  Bc8 {[%clk 0:00:00]} 25. Ne1 {[%clk 0:00:00]}  Be5 {[%clk 0:00:00]} 26. Kc2 {[%clk 0:00:00]}  Bd4 {[%clk 0:00:00]} 27. f3 {[%clk 0:00:00]}  Rh8 {[%clk 0:00:00]} 28. Rf1 {[%clk 0:00:00]}  Rh2 {[%clk 0:00:00]} 29. Ne2 {[%clk 0:00:00]}  Be3 {[%clk 0:00:00]} 30. Kc3 {[%clk 0:00:00]}  Be6 {[%clk 0:00:00]} 31. a4 {[%clk 0:00:00]}  g5 {[%clk 0:00:00]} 32. Ra1 {[%clk 0:00:00]}  Kg6 {[%clk 0:00:00]} 33. a5 {[%clk 0:00:00]}  b5 {[%clk 0:00:00]} 34. a6 {[%clk 0:00:00]}  g4 {[%clk 0:00:00]} 35. Ra5 {[%clk 0:00:00]}  b4+ {[%clk 0:00:00]} 36. Kc2 {[%clk 0:00:00]}  g3 {[%clk 0:00:00]} 37. Ra1 {[%clk 0:00:00]}  Bf2 {[%clk 0:00:00]} 38. Kd2 {[%clk 0:00:00]}  Rdh8 {[%clk 0:00:00]} 39. Nxf4+ {[%clk 0:00:00]}  Kf6 {[%clk 0:00:00]} 40. Nxe6 {[%clk 0:00:00]}  fxe6 {[%clk 0:00:00]} 41. Ke2 {[%clk 0:00:00]}  Ke5 {[%clk 0:00:00]} 42. f4+ {[%clk 0:00:00]}  Kxf4 {[%clk 0:00:00]} 43. Nf3 {[%clk 0:00:00]}  Rxg2 {[%clk 0:00:00]} 44. Ra5 {[%clk 0:00:00]}  Be3+ {[%clk 0:00:00]} 45. Ke1 {[%clk 0:00:00]}  Rf2 {[%clk 0:00:00]} 46. Rxf2 {[%clk 0:00:00]}  gxf2+ {[%clk 0:00:00]} 47. Ke2 {[%clk 0:00:00]}  Rh1 {[%clk 0:00:00]} 48. Ra2 {[%clk 0:00:00]}  f1=Q# {[%clk 0:00:00]} 0-1


[Site "https://www.chess.com"]

[Event "Titled Tuesday Blitz August 16 Early 2022"]
[White "Perera Alfonso, Rene Humberto"]
[Black "Reprintsev, Alexander"]
[WhiteFideId "3514722"]
[BlackFideId "14100541"]
[WhiteElo "2320"]
[BlackElo "2350"]
[Result "0-1"]
[Round "03"]
[TimeControl "180+2"]
[Date "2022.08.18"]
[WhiteClock "0:00:00"]
[BlackClock "0:00:00"]

1. e4 {[%clk 0:00:00]}  d5 {[%clk 0:00:00]} 2. exd5 {[%clk 0:00:00]}  Qxd5 {[%clk 0:00:00]} 3. Nc3 {[%clk 0:00:00]}  Qa5 {[%clk 0:00:00]} 4. d4 {[%clk 0:00:00]}  Nf6 {[%clk 0:00:00]} 5. Nf3 {[%clk 0:00:00]}  Nc6 {[%clk 0:00:00]} 6. Bb5 {[%clk 0:00:00]}  Ne4 {[%clk 0:00:00]} 7. O-O {[%clk 0:00:00]}  Nxc3 {[%clk 0:00:00]} 8. bxc3 {[%clk 0:00:00]}  Qxb5 {[%clk 0:00:00]} 9. d5 {[%clk 0:00:00]}  Nd8 {[%clk 0:00:00]} 10. Qd4 {[%clk 0:00:00]}  e6 {[%clk 0:00:00]} 11. c4 {[%clk 0:00:00]}  Qc5 {[%clk 0:00:00]} 12. Qh4 {[%clk 0:00:00]}  Be7 {[%clk 0:00:00]} 13. Qg3 {[%clk 0:00:00]}  Bf6 {[%clk 0:00:00]} 14. Rb1 {[%clk 0:00:00]}  O-O {[%clk 0:00:00]} 15. Rd1 {[%clk 0:00:00]}  Qxc4 {[%clk 0:00:00]} 16. Ne5 {[%clk 0:00:00]}  Qxc2 {[%clk 0:00:00]} 17. Bb2 {[%clk 0:00:00]}  exd5 {[%clk 0:00:00]} 18. h3 {[%clk 0:00:00]}  Be6 {[%clk 0:00:00]} 19. Rdc1 {[%clk 0:00:00]}  Qf5 {[%clk 0:00:00]} 20. Ng4 {[%clk 0:00:00]}  Bg5 {[%clk 0:00:00]} 21. Re1 {[%clk 0:00:00]}  h5 {[%clk 0:00:00]} 22. Ne3 {[%clk 0:00:00]}  Qf4 {[%clk 0:00:00]} 0-1


[Site "https://www.chess.com"]